Cogmind - Beta 10.2 @@@ ROGUE MODE // 2021.02.19 @ 19:18:51 Player: CrossedViper Result: Destroyed by as-97637 with Assembled F-torch Performance ------------- Evolutions (0) 0 Regions Visited (4) 800 Robots Destroyed (28) 140 Value Destroyed (668) 668 Prototype IDs (0) 0 Alien Tech Used (0) 0 Bonus (-607) -607 TOTAL SCORE: 1001 Bonus ------- Friendly Fire -607 Cogmind --------- Core Integrity 0/250 Matter 300/300 Energy 100/100 System Corruption 9% Temperature Cool (38) Movement Treading (180) Ox1 Location -9/Mines Parts ------- > --- POWER (1) -------- (None) > --- PROPULSION (2) --- Light Treads > --- UTILITY (2) ------ High-capacity Storage Unit > --- WEAPON (2) ------- Heavy Assault Rifle > --- INVENTORY (12) --- Light Treads Light Treads High-capacity Storage Unit High-capacity Storage Unit Humpback Humpback Light Armor Plating Beam Rifle Assault Rifle Bore Cannon Peak State ------------ > --- POWER ------------ Improved Ion Engine > --- PROPULSION ------- Light Treads Light Treads > --- UTILITY ---------- High-capacity Storage Unit Light Armor Plating > --- WEAPON ----------- Medium Laser Heavy Assault Rifle > --- INVENTORY -------- Light Treads Light Treads High-capacity Storage Unit High-capacity Storage Unit Humpback Light Armor Plating Beam Rifle Assault Rifle [Rating: 10] Favorites ----------- Power Light Ion Engine Engine Light Ion Engine Propulsion Light Treads Treads Light Treads Leg Aluminum Leg Utility Small Storage Unit Storage Small Storage Unit Protection Light Armor Plating Weapon Light Assault Rifle Energy Gun Medium Laser Ballistic Gun Light Assault Rifle Build | -11 -10 -10 -10 -9 ------- Run | Scr Mat Min Exi Min Slots Evolved . | . . . . . Power . | . . . . . Propulsion . | . . . . . Utility . | . . . . . Weapon . | . . . . . Parts Attached 18 | . 13 4 1 . Power 4 | . 3 1 . . Engine 4 | . 3 1 . . Core . | . . . . . Reactor . | . . . . . Propulsion 6 | . 6 . . . Treads 6 | . 6 . . . Leg . | . . . . . Wheel . | . . . . . Hover . | . . . . . Flight . | . . . . . Utility 2 | . 1 . 1 . Device . | . . . . . Storage 1 | . . . 1 . Processor . | . . . . . Hackware . | . . . . . Protection 1 | . 1 . . . Artifact . | . . . . . Weapon 6 | . 3 3 . . Energy Gun 3 | . 1 2 . . Energy Cannon . | . . . . . Ballistic Gun 3 | . 2 1 . . Ballistic Cannon . | . . . . . Launcher . | . . . . . Special Weapon . | . . . . . Impact Weapon . | . . . . . Slashing Weapon . | . . . . . Piercing Weapon . | . . . . . Special Melee Weapon . | . . . . . Unidentified Prototypes . | . . . . . Parts Lost 10 | . 5 1 . 4 Power 2 | . 1 . . 1 Propulsion 2 | . 1 . . 1 Utility 1 | . . . . 1 Weapon 5 | . 3 1 . 1 Highest Loss Streak 4 | . 2 1 . 4 Average Slot Usage (%) 88 | . 82 88 100 95 Engine 13 | . 13 14 14 14 Treads 25 | . 22 28 28 23 Leg 2 | . 5 . . . Storage 14 | . 14 14 14 14 Protection 8 | . 2 14 14 14 Energy Gun 6 | . 3 5 14 14 Ballistic Gun 16 | . 20 11 14 14 Naked Turns . | . . . . . Heaviest Build 47 | 10 13 19 47 47 Greatest Support 40 | 20 40 40 40 40 Greatest Overweight (x) 2 | . . . 1 2 Average Overweight (x) . | . . . . 1 Largest Inventory Capacity 12 | . 6 6 12 12 Average Capacity 6 | . 6 6 9 12 Most Carried 12 | . 6 6 11 12 Average Carried 5 | . 3 5 7 11 Final Capacity 12 | 6 6 6 12 12 Final Carried 12 | 6 6 5 11 12 Class Distribution -------------------- 71% | Mutant 28% | Scavenger-Mutant Dominant Class ---------------- Mutant | -10/Materials Mutant | -10/Mines Scavenger-Mutant | -10/Exiles Mutant | -9/Mines Resources | -11 -10 -10 -10 -9 ----------- Run | Scr Mat Min Exi Min Matter Collected 603 | 200 337 41 . 25 Remotely . | . . . . . Salvage Created 1020 | . 750 132 . 138 Parts 67 | . 52 5 . 10 Haulers Intercepted 2 | . 2 . . . Recyclers Shooed . | . . . . . Parts Field Recycled . | . . . . . Retrieved Matter . | . . . . . Parts Self-Destructed . | . . . . . Prevented . | . . . . . Kills | -11 -10 -10 -10 -9 ------- Run | Scr Mat Min Exi Min Combat Hostiles Destroyed 16 | . 14 . . 2 Guns 16 | . 14 . . 2 Classes Destroyed 6 | . 5 . . 1 Worker 4 | . 3 1 . . Builder 1 | . 1 . . . Hauler 2 | . 2 . . . Watcher 2 | . 2 . . . Grunt 16 | . 14 . . 2 Thug 2 | . . 2 . . Guerrilla 1 | . . . . 1 Best Kill Streak 5 | . 5 1 . 2 Combat Bots Only 4 | . 4 . . 2 Max Kills in Single Turn 1 | . 1 1 . 1 Gunslinging . | . . . . . Exploded . | . . . . . Melee . | . . . . . Uniques/NPCs Destroyed . | . . . . . Combat | -11 -10 -10 -10 -9 -------- Run | Scr Mat Min Exi Min Damage Taken 1318 | . 823 33 . 462 Core 260 | . 173 . . 87 Absorbed by Shields . | . . . . . Core Remaining (%) 100 | 100 . . . . Volleys Fired 118 | . 96 15 . 7 Largest 2 | . 2 2 . 2 Hottest 100 | . 60 100 . 73 Shots Fired 184 | . 149 21 . 14 Gun 184 | . 149 21 . 14 Cannon . | . . . . . Launcher . | . . . . . Special . | . . . . . Kinetic 143 | . 136 . . 7 Thermal 41 | . 13 21 . 7 Explosive . | . . . . . Electromagnetic . | . . . . . Robot Hit Streak 17 | . 17 9 . 5 Robot Miss Streak 4 | . 4 2 . 2 Penetration Max . | . . . . . Secondary Targets . | . . . . . Shots Hit Robots 127 | . 99 18 . 10 Core Hits 61 | . 45 9 . 7 Critical Hits 1 | . 1 . . . Critical Kills 1 | . 1 . . . Critical Parts Destroyed . | . . . . . Melee Attacks . | . . . . . Impact . | . . . . . Slashing . | . . . . . Piercing . | . . . . . Sneak Attacks . | . . . . . Combat Hostiles . | . . . . . Follow-up Attacks . | . . . . . Damage Inflicted 1522 | . 1116 249 . 157 Guns 1363 | . 966 248 . 149 Cannons . | . . . . . Explosions 143 | . 143 . . . Melee . | . . . . . Ramming 16 | . 7 1 . 8 Kinetic 974 | . 889 . . 85 Thermal 532 | . 220 248 . 64 Explosive . | . . . . . Electromagnetic . | . . . . . Impact . | . . . . . Slashing . | . . . . . Piercing . | . . . . . Highest Corruption 9 | . . . . 9 Average Corruption 3 | . . . . 3 Corruption Purged . | . . . . . Overload Shots . | . . . . . Overflow Damage 72 | . 72 . . . Projectiles . | . . . . . Explosions 72 | . 72 . . . Melee . | . . . . . Knockbacks . | . . . . . Impact . | . . . . . Kinetic . | . . . . . Secondary . | . . . . . Self-Inflicted Damage 88 | . 88 . . . Shots 1 | . 1 . . . Rammed 6 | . 2 1 . 3 Targets Rammed 8 | . 4 1 . 3 Kicked . | . . . . . Crushed 2 | . 2 . . . Highest Temperature 336 | . 57 336 . 144 Average Temperature 90 | . 11 200 . 79 Received Heat Transfer 567 | . 414 9 . 144 Effects 2 | . . 2 . . Energy Bleed 1 | . . 1 . . Interference 1 | . . 1 . . Siege Activations . | . . . . . Robots Corrupted . | . . . . . Combat Hostiles . | . . . . . Parts Fried . | . . . . . Impact Corruptions . | . . . . . Robots Melted . | . . . . . Combat Hostiles . | . . . . . Parts Melted . | . . . . . Heat Transferred 1200 | . 275 740 . 185 Parts Sabotaged . | . . . . . Parts Stolen . | . . . . . Parts Stripped . | . . . . . Power Chain Reactions . | . . . . . Missiles Intercepted . | . . . . . Alert | -11 -10 -10 -10 -9 ------- Run | Scr Mat Min Exi Min Peak Influence 324 | . 324 72 . 40 Initial 72 | . . 72 . . Average 100 | . 117 68 . 33 Maximum Alert Level 1 | . 1 . . . Low Security (%) 88 | . 82 100 . 100 Level 1 11 | . 17 . . . Level 2 . | . . . . . Level 3 . | . . . . . Level 4 . | . . . . . Level 5 . | . . . . . High Security . | . . . . . Max Security . | . . . . . Squads Dispatched 4 | . 4 . . . Investigation 1 | . 1 . . . Extermination . | . . . . . Reinforcement 3 | . 3 . . . Assault . | . . . . . Garrison . | . . . . . Intercept . | . . . . . Construction Impeded . | . . . . . Haulers Reinforced . | . . . . . Stealth | -11 -10 -10 -10 -9 --------- Run | Scr Mat Min Exi Min Distress Signals 1 | . 1 . . . Communications Jammed . | . . . . . Distress Signals . | . . . . . Times Spotted 35 | . 23 1 . 11 Peak Tracking Total 11 | . 5 2 . 11 Tactical Retreats . | . . . . . Traps | -11 -10 -10 -10 -9 ------- Run | Scr Mat Min Exi Min Traps Triggered 3 | . 3 . . . Indirectly . | . . . . . Trap Hack Attempts . | . . . . . Triggered . | . . . . . Disarmed . | . . . . . Reprogrammed . | . . . . . Reused . | . . . . . Traps Extracted . | . . . . . Installed . | . . . . . Triggered . | . . . . . Machines | -11 -10 -10 -10 -9 ---------- Run | Scr Mat Min Exi Min Machines Disabled 5 | . 5 . . . Max in Single Turn 4 | . 4 . . . Machines Sabotaged . | . . . . . Garrisons Compromised . | . . . . . Overloaded Fab Kills . | . . . . . Fab Network Shutdowns . | . . . . . Hacking | -11 -10 -10 -10 -9 --------- Run | Scr Mat Min Exi Min Machines Accessed 5 | . 4 . 1 . Terminals 4 | . 4 . . . Fabricators . | . . . . . Repair Stations . | . . . . . Recycling Units . | . . . . . Scanalyzers . | . . . . . Garrison Access . | . . . . . Total Hacks 13 | . 12 . 1 . Successful 7 | . 6 . 1 . Failed 6 | . 6 . . . Catastrophic 3 | . 3 . . . Database Lockouts . | . . . . . Manual 10 | . 10 . . . Terminals 12 | . 12 . . . Fabricators . | . . . . . Repair Stations . | . . . . . Recycling Units . | . . . . . Scanalyzers . | . . . . . Garrison Access . | . . . . . Terminal Hacks 5 | . 4 . 1 . Record 1 | . . . 1 . Robot Analysis 2 | . 2 . . . Branch Access Points 1 | . 1 . . . Locate Traps 1 | . 1 . . . Fabricator Hacks . | . . . . . Repair Station Hacks . | . . . . . Recycling Unit Hacks . | . . . . . Scanalyzer . | . . . . . Garrison Access Hacks . | . . . . . Unauthorized Hacks 2 | . 2 . . . Terminals 2 | . 2 . . . Track 1 | . 1 . . . Botnet 1 | . 1 . . . Fabricators . | . . . . . Repair Stations . | . . . . . Recycling Units . | . . . . . Scanalyzers . | . . . . . Garrison Access . | . . . . . Data Cores Recovered . | . . . . . Used . | . . . . . Hacking Detections 3 | . 3 . . . Full Trace Events . | . . . . . Feedback Events . | . . . . . Feedback Blocked . | . . . . . Robot Schematics Acquired . | . . . . . Robots Built . | . . . . . Matter . | . . . . . Time . | . . . . . Total Robot Build Rating . | . . . . . Part Schematics Acquired . | . . . . . Parts Built . | . . . . . Matter . | . . . . . Time . | . . . . . Total Part Build Rating . | . . . . . Parts Repaired . | . . . . . Time . | . . . . . Parts Recycled . | . . . . . Recycled Matter . | . . . . . Retrieved Matter . | . . . . . Retrieved Components . | . . . . . Parts Scanalyzed . | . . . . . Part Schematics Acquired . | . . . . . Parts Damaged . | . . . . . Bothacking | -11 -10 -10 -10 -9 ------------ Run | Scr Mat Min Exi Min Used RIF Installer . | . . . . . Robots Hacked . | . . . . . Non-combat . | . . . . . Combat . | . . . . . Robot Hacks Applied . | . . . . . Relay Couplers Released . | . . . . . Robots Rewired . | . . . . . Allies Hacked . | . . . . . Hacks Repelled . | . . . . . Allies | -11 -10 -10 -10 -9 -------- Run | Scr Mat Min Exi Min Total Allies . | . . . . . Largest Group . | . . . . . Highest-Rated Group . | . . . . . Highest-Rated Ally . | . . . . . Total Orders . | . . . . . Ally Attacks . | . . . . . Total Damage . | . . . . . Kills . | . . . . . Allies Corrupted . | . . . . . Allies Melted . | . . . . . Intel | -11 -10 -10 -10 -9 ------- Run | Scr Mat Min Exi Min Robot Analysis Total 2 | . 2 . . . Derelict Logs Recovered 1 | . . 1 . . Drone Launches . | . . . . . Drone Recoveries . | . . . . . Exploration | -11 -10 -10 -10 -9 ------------- Run | Scr Mat Min Exi Min Turns Passed 1796 | . 912 408 439 37 Spaces Moved 882 | 1 402 220 254 5 Core . | . . . . . Treads 788 | . 309 220 254 5 Legs 94 | 1 93 . . . Wheels . | . . . . . Hover . | . . . . . Flight . | . . . . . Fastest Speed 120 | 120 120 160 160 180 Average Speed 159 | 120 150 160 170 184 Slowest Speed 200 | 120 160 160 180 200 Overloaded Moves . | . . . . . Propulsion Burnouts . | . . . . . Robots Hopped . | . . . . . Cave-ins Triggered . | . . . . . Exploration Rate (%) 40 | 2 82 58 57 2 Regions Visited 4 Branch Regions 3 Pre-discovered Areas 2 | . . 1 1 . Known Exits Taken 1 | . 1 . . . Unknown Exits Taken 3 | 1 . 1 1 . Scrap Searched 1 | . . 1 . . Spaces Dug . | . . . . . Terrain Destroyed 18 | . 18 . . . Melee . | . . . . . Projectile . | . . . . . AOE 18 | . 18 . . . Terrain Rammed . | . . . . . Walls Destroyed . | . . . . . Machines Disabled . | . . . . . Actions | -11 -10 -10 -10 -9 --------- Run | Scr Mat Min Exi Min Total 1104 | . 573 256 259 16 Wait 53 | . 43 10 . . Move 878 | . 401 219 253 5 Hop . | . . . . . Pick Up 17 | . 9 3 4 1 Fast Attach 8 | . 7 1 . . Attach 6 | . 4 2 . . Detach . | . . . . . Swap 4 | . 2 1 1 . Drop 12 | . 7 4 1 . Fire 118 | . 96 15 . 7 Melee . | . . . . . Ram . | . . . . . Kick . | . . . . . Crush 8 | . 4 1 . 3 Escape Stasis . | . . . . . Rewire . | . . . . . Trap . | . . . . . Miscellaneous . | . . . . . Route ------- -11/Scrapyard -10/Materials (discovered 4 exits: [*Mat x2] / *Min x2) -10/Mines (discovered 2 exits: [*Mat] / *Exi) -10/Exiles -9/Mines History --------- Turn | Location | Event 1 | -11/Scrapyard | Discovered new exit (range 0) 1 | -11/Scrapyard | Entered Materials 73 | -10/Materials | Discovered new exit (range 11) 187 | -10/Materials | Discovered new exit (range 16) 315 | -10/Materials | Build established: Mutant 580 | -10/Materials | Core integrity fell below 50% 632 | -10/Materials | Discovered new exit (range 9) 881 | -10/Materials | Identified exit to Mines 913 | -10/Materials | Entered Mines 1110 | -10/Mines | Discovered new exit (range 10) 1112 | -10/Mines | Learned location of Zion (-7) 1198 | -10/Mines | Joined a pair of Derelicts in attacking an 0b10 outpost 1315 | -10/Mines | Deemed a non-threat by the Exiles lab entrance 1315 | -10/Mines | Discovered new exit (range 5) 1321 | -10/Mines | Entered Exiles 1358 | -10/Exiles | Met 8R-AWN 1389 | -10/Exiles | Met EX-HEX 1449 | -10/Exiles | Met EX-DEC 1587 | -10/Exiles | Build established: Scavenger-Mutant 1745 | -10/Exiles | Discovered new exit (range 10) 1760 | -10/Exiles | Entered Mines 1761 | -9/Mines | Assembled infested the area 1766 | -9/Mines | Assisted by a Guerilla fighting off Assembled 1786 | -9/Mines | Core integrity fell below 20% 1797 | -9/Mines | Destroyed by as-97637 with Assembled F-torch Last Messages --------------- 01764_ HV Slug penetrates Wall. 01766_ A derelict emerges from the shadows: "You need to get out of here! I've been tracking a group of Assembled to figure out where they're coming from, and they're closing on this area, come on!" 01767_ HV Slug penetrates G-47 Trooper. 01767_ G-47 Trooper destroyed. 01767_ HV Slug penetrates Wall. 01772_ XE-IU7(h) destroyed. 01775_ Acquired 25 matter. 01781_ Acquired Bore Cannon. 01788_ Lgt. Treads destroyed. 01788_ System corrupted by crushing effect (+1). 01792_ Slammed into as-52659. 01792_ Lgt. Armor Plating destroyed. 01792_ System corrupted by crushing effect (+3). 01794_ Slammed into as-34379. 01794_ Med. Laser destroyed. 01795_ Imp. Ion Engine destroyed. 01795_ System corrupted by crushing effect (+5). 01796_ Slammed into as-97637. Map ----- +----------------------------------------------------+ | ????????????????????????????????????????????????? | | ????????????????????????????????????????????????? | | ????????????????????????????????????????????????? | | ????????????????????????????????????????????????? | | ????????????????????????????????????????????????? | | ????????????????????????????????????????????????? | | ????????????????????????????????????????????????? | | ????????????????????????????????????????????????? | | ????????????????????????????????????????????????? | | ????????????????????????????????????????????????? | | ????????????????????????????????????????????????? | | ????????????????????????????????????????????????? | | ????????????????????????????????????????????????? | | ????????????????????????????????????????????????? | | ????????????????????????????????????????????????? | | ????????????????????????????????????????????????? | | ????????????????????????????????????????????????? | | ????????????????????????????????????????????????? | | ????????????????????????????????????????????????? | | ????????????????????????????????????????????????? | | ????????????????????????????????????????????????? | | ????????????????????????????????????????????????? | | ????????????????????????????????????????????????? | | ?????????????????????#######????????????????????? | | ?????????????????????? aaaa?????????????????????? | | ???????????????????????#@###????????????????????? | | ?????????????????????###!#!#????????????????????? | | ?????????????????????# aaa##????????????????????? | | ?????????????????????# *=a*#????????????????????? | | ????????????????????## a%!##????????????????????? | | ????????????????????#T !=!#?????????????????????? | | ????????????????????## #?????????????????????? | | ?????????????????????# #?????????????????????? | | ?????????????????????######?????????????????????? | | ????????????????????????????????????????????????? | | ????????????????????????????????????????????????? | | ????????????????????????????????????????????????? | | ????????????????????????????????????????????????? | | ????????????????????????????????????????????????? | | ????????????????????????????????????????????????? | | ????????????????????????????????????????????????? | | ????????????????????????????????????????????????? | | ????????????????????????????????????????????????? | | ????????????????????????????????????????????????? | | ????????????????????????????????????????????????? | | ????????????????????????????????????????????????? | | ????????????????????????????????????????????????? | | ????????????????????????????????????????????????? | | ????????????????????????????????????????????????? | | ????????????????????????????????????????????????? | +----------------------------------------------------+ Best States ------------- Heat Dissipation 25 Energy Generation 12 Energy Capacity 265 Matter Stores 300 Matter Capacity 300 Sight Range 16 Terrain Scan Density 10 Armor Coverage 150 Evasion (%) 40 Recoil Reduction 2 Item Schematics ----------------- None Robot Schematics ------------------ None Fabricated ------------ Nothing Alien Tech Used ----------------- None Achievements -------------- None Challenges ------------ None Game ------ Seed MomentumBattleBlaster Manual? 0 Play Time 00:08:57 Cumulative 322.2 hours Start 2021.02.19 @ 19:10:48 End 2021.02.19 @ 19:18:51 Sessions 1 Manual Loads 0 Difficulty Rogue Special Mode None Game No. 261 Rogue 254 Adventurer 0 Explorer 7 Win Type - Total 11 Types 3/1/7/0/0/0/0/0/0 Lore% 78 Gallery% 93 Achievement% 75 Wizard Run 0 Options --------- ASCII 0 Keyboard 0 Movement Numpad Keybinds 0 Fullscreen 1 Font 18/X11Bold Map View 76x50 Tactical HUD 1 Map Filters NONE Filters NONE Steam 1 RUN: 1b74d73e-1f47-4949-9792-12513ef3e7ea